[Event "Titled Tuesday Blitz May 24 Early 2022"]
[White "Stanisz, Patryk"]
[Black "Kuznetsov, Mikhail"]
[WhiteFideId "1123106"]
[BlackFideId "4117190"]
[WhiteElo "1833"]
[BlackElo "1981"]
[Result "0-1"]
[Round "04"]
[TimeControl "180+1"]
[Date "2022.05.25"]
[WhiteClock "0:00:07"]
[BlackClock "0:00:06"]

1. Nf3 {[%clk 0:03:00]}  Nf6 {[%clk 0:02:56]} 2. c4 {[%clk 0:03:00]}  g6 {[%clk 0:02:54]} 3. g3 {[%clk 0:03:00]}  Bg7 {[%clk 0:02:54]} 4. Bg2 {[%clk 0:03:01]}  O-O {[%clk 0:02:55]} 5. O-O {[%clk 0:03:02]}  d5 {[%clk 0:02:55]} 6. cxd5 {[%clk 0:03:02]}  Nxd5 {[%clk 0:02:56]} 7. Nc3 {[%clk 0:02:57]}  Nb6 {[%clk 0:02:56]} 8. a4 {[%clk 0:02:55]}  a5 {[%clk 0:02:49]} 9. d3 {[%clk 0:02:53]}  Nc6 {[%clk 0:02:49]} 10. Be3 {[%clk 0:02:50]}  Nd5 {[%clk 0:02:47]} 11. Bd2 {[%clk 0:02:48]}  Ncb4 {[%clk 0:02:47]} 12. Ra3 {[%clk 0:02:34]}  c6 {[%clk 0:02:41]} 13. Nxd5 {[%clk 0:02:28]}  Qxd5 {[%clk 0:02:38]} 14. Bc3 {[%clk 0:02:26]}  Qd6 {[%clk 0:02:25]} 15. Qd2 {[%clk 0:02:18]}  Bg4 {[%clk 0:02:18]} 16. Raa1 {[%clk 0:01:44]}  Bxf3 {[%clk 0:02:17]} 17. Bxf3 {[%clk 0:01:43]}  Rfd8 {[%clk 0:02:15]} 18. Bxg7 {[%clk 0:01:29]}  Kxg7 {[%clk 0:02:15]} 19. Rfc1 {[%clk 0:01:24]}  Qf6 {[%clk 0:02:08]} 20. Qc3 {[%clk 0:01:22]}  h5 {[%clk 0:02:03]} 21. Kg2 {[%clk 0:01:19]}  h4 {[%clk 0:02:02]} 22. Qxf6+ {[%clk 0:01:19]}  Kxf6 {[%clk 0:02:02]} 23. gxh4 {[%clk 0:01:08]}  Rd4 {[%clk 0:01:42]} 24. Rc4 {[%clk 0:00:55]}  Rxc4 {[%clk 0:01:35]} 25. dxc4 {[%clk 0:00:56]}  Rd8 {[%clk 0:01:34]} 26. b3 {[%clk 0:00:33]}  Rd2 {[%clk 0:01:21]} 27. Rb1 {[%clk 0:00:31]}  b6 {[%clk 0:01:03]} 28. Kg3 {[%clk 0:00:29]}  c5 {[%clk 0:01:02]} 29. h5 {[%clk 0:00:27]}  gxh5 {[%clk 0:00:55]} 30. Bxh5 {[%clk 0:00:27]}  Nc6 {[%clk 0:00:55]} 31. e3 {[%clk 0:00:28]}  Ne5 {[%clk 0:00:53]} 32. Bf3 {[%clk 0:00:23]}  Nd3 {[%clk 0:00:43]} 33. Rd1 {[%clk 0:00:21]}  Rxd1 {[%clk 0:00:37]} 34. Bxd1 {[%clk 0:00:22]}  Kg5 {[%clk 0:00:37]} 35. h4+ {[%clk 0:00:21]}  Kh6 {[%clk 0:00:38]} 36. f4 {[%clk 0:00:20]}  f6 {[%clk 0:00:36]} 37. e4 {[%clk 0:00:19]}  e6 {[%clk 0:00:30]} 38. Kf3 {[%clk 0:00:19]}  Nb4 {[%clk 0:00:26]} 39. Ke3 {[%clk 0:00:18]}  Nc6 {[%clk 0:00:25]} 40. Bg4 {[%clk 0:00:16]}  Nd4 {[%clk 0:00:25]} 41. Bd1 {[%clk 0:00:14]}  e5 {[%clk 0:00:24]} 42. fxe5 {[%clk 0:00:13]}  fxe5 {[%clk 0:00:25]} 43. Kd3 {[%clk 0:00:12]}  Kg6 {[%clk 0:00:19]} 44. Kc3 {[%clk 0:00:11]}  Kh6 {[%clk 0:00:18]} 45. Bg4 {[%clk 0:00:11]}  Kg6 {[%clk 0:00:18]} 46. Bd1 {[%clk 0:00:12]}  Ne6 {[%clk 0:00:14]} 47. Bg4 {[%clk 0:00:11]}  Nf4 {[%clk 0:00:13]} 48. Bf3 {[%clk 0:00:04]}  Kh6 {[%clk 0:00:12]} 49. Kd2 {[%clk 0:00:04]}  Ng6 {[%clk 0:00:12]} 50. h5 {[%clk 0:00:03]}  Nf4 {[%clk 0:00:13]} 51. Ke3 {[%clk 0:00:03]}  Nxh5 {[%clk 0:00:12]} 52. Bg4 {[%clk 0:00:04]}  Nf4 {[%clk 0:00:07]} 53. Bd7 {[%clk 0:00:03]}  Kg5 {[%clk 0:00:07]} 54. Bc6 {[%clk 0:00:02]}  Ne6 {[%clk 0:00:07]} 55. Bb5 {[%clk 0:00:02]}  Nd4 {[%clk 0:00:07]} 56. Bd7 {[%clk 0:00:02]}  Nxb3 {[%clk 0:00:07]} 57. Kd3 {[%clk 0:00:02]}  Kf4 {[%clk 0:00:07]} 58. Bb5 {[%clk 0:00:02]}  Nd4 {[%clk 0:00:04]} 59. Be8 {[%clk 0:00:03]}  Ne6 {[%clk 0:00:03]} 60. Bd7 {[%clk 0:00:04]}  Ng5 {[%clk 0:00:03]} 61. Be8 {[%clk 0:00:04]}  Nxe4 {[%clk 0:00:03]} 62. Bc6 {[%clk 0:00:04]}  Nf2+ {[%clk 0:00:03]} 63. Ke2 {[%clk 0:00:05]}  Ng4 {[%clk 0:00:03]} 64. Bd5 {[%clk 0:00:05]}  e4 {[%clk 0:00:04]} 65. Bc6 {[%clk 0:00:06]}  Ne5 {[%clk 0:00:04]} 66. Bd5 {[%clk 0:00:06]}  e3 {[%clk 0:00:05]} 67. Bb7 {[%clk 0:00:06]}  Nxc4 {[%clk 0:00:05]} 68. Bc6 {[%clk 0:00:06]}  Ne5 {[%clk 0:00:05]} 69. Bb5 {[%clk 0:00:07]}  Ke4 {[%clk 0:00:05]} 70. Ba6 {[%clk 0:00:07]}  Kd4 {[%clk 0:00:06]} 71. Bb7 {[%clk 0:00:07]}  c4 {[%clk 0:00:06]} 72. Ba6 {[%clk 0:00:07]}  c3 {[%clk 0:00:07]} 73. Kd1 {[%clk 0:00:08]}  Nc4 {[%clk 0:00:08]} 74. Kc2 {[%clk 0:00:07]}  e2 {[%clk 0:00:05]} 75. Bb5 {[%clk 0:00:07]}  e1=Q {[%clk 0:00:05]} 76. Bxc4 {[%clk 0:00:08]}  Qd2+ {[%clk 0:00:05]} 77. Kb3 {[%clk 0:00:07]}  Qb2# {[%clk 0:00:06]} 0-1


[Site "https://www.chess.com"]

[Event "Titled Tuesday Blitz May 24 Early 2022"]
[White "Swiercz, Dariusz"]
[Black "Molina, Roberto Junio Brito"]
[WhiteFideId "1126881"]
[BlackFideId "2109450"]
[WhiteElo "2627"]
[BlackElo "2432"]
[Result "1-0"]
[Round "04"]
[TimeControl "180+1"]
[Date "2022.05.24"]
[WhiteClock "0:01:21"]
[BlackClock "0:01:03"]

1. d4 {[%clk 0:03:00]}  d5 {[%clk 0:02:59]} 2. Nf3 {[%clk 0:03:00]}  Nf6 {[%clk 0:02:59]} 3. c4 {[%clk 0:02:59]}  c6 {[%clk 0:02:59]} 4. Qb3 {[%clk 0:02:58]}  dxc4 {[%clk 0:02:59]} 5. Qxc4 {[%clk 0:02:58]}  Bf5 {[%clk 0:03:00]} 6. g3 {[%clk 0:02:58]}  e6 {[%clk 0:03:00]} 7. Bg2 {[%clk 0:02:59]}  Be7 {[%clk 0:03:00]} 8. O-O {[%clk 0:02:59]}  O-O {[%clk 0:03:01]} 9. Qb3 {[%clk 0:03:00]}  Qb6 {[%clk 0:03:00]} 10. Nbd2 {[%clk 0:03:00]}  Nbd7 {[%clk 0:03:00]} 11. Nc4 {[%clk 0:02:59]}  Qxb3 {[%clk 0:03:00]} 12. axb3 {[%clk 0:03:00]}  Be4 {[%clk 0:02:53]} 13. Bf4 {[%clk 0:02:58]}  Nh5 {[%clk 0:02:44]} 14. Bd6 {[%clk 0:02:56]}  Bxd6 {[%clk 0:02:35]} 15. Nxd6 {[%clk 0:02:57]}  Bxf3 {[%clk 0:02:35]} 16. Bxf3 {[%clk 0:02:57]}  Nhf6 {[%clk 0:02:35]} 17. Nxb7 {[%clk 0:02:56]}  Nd5 {[%clk 0:02:33]} 18. Rfc1 {[%clk 0:02:50]}  Rfc8 {[%clk 0:02:32]} 19. Ra6 {[%clk 0:02:27]}  Rab8 {[%clk 0:02:28]} 20. Na5 {[%clk 0:02:10]}  Kf8 {[%clk 0:02:19]} 21. Rxa7 {[%clk 0:02:04]}  N7f6 {[%clk 0:02:13]} 22. Rxc6 {[%clk 0:02:01]}  Rxc6 {[%clk 0:02:09]} 23. Nxc6 {[%clk 0:02:02]}  Rxb3 {[%clk 0:02:05]} 24. Ne5 {[%clk 0:01:48]}  Rxb2 {[%clk 0:01:55]} 25. Rxf7+ {[%clk 0:01:47]}  Kg8 {[%clk 0:01:55]} 26. Ra7 {[%clk 0:01:43]}  h5 {[%clk 0:01:49]} 27. h4 {[%clk 0:01:39]}  Rd2 {[%clk 0:01:47]} 28. e3 {[%clk 0:01:38]}  Nc3 {[%clk 0:01:42]} 29. Nc4 {[%clk 0:01:29]}  Rc2 {[%clk 0:01:39]} 30. Nd6 {[%clk 0:01:29]}  Ng4 {[%clk 0:01:28]} 31. Ra8+ {[%clk 0:01:22]}  Kh7 {[%clk 0:01:28]} 32. Ne4 {[%clk 0:01:22]}  Nd5 {[%clk 0:01:03]} 33. Ng5+ {[%clk 0:01:21]} 1-0


[Site "https://www.chess.com"]

[Event "Titled Tuesday Blitz May 24 Early 2022"]
[White "Tarigan, Gilbert Elroy"]
[Black "Araujo Filho, Luiz Antonio Coel"]
[WhiteFideId "7108133"]
[BlackFideId "2130661"]
[WhiteElo "1908"]
[BlackElo "2261"]
[Result "1-0"]
[Round "04"]
[TimeControl "180+1"]
[Date "2022.05.25"]
[WhiteClock "0:00:30"]
[BlackClock "0:00:53"]

1. Nf3 {[%clk 0:03:00]}  f5 {[%clk 0:02:59]} 2. d3 {[%clk 0:02:59]}  Nf6 {[%clk 0:03:00]} 3. e4 {[%clk 0:03:00]}  fxe4 {[%clk 0:03:01]} 4. dxe4 {[%clk 0:03:00]}  d6 {[%clk 0:03:00]} 5. e5 {[%clk 0:03:00]}  Nfd7 {[%clk 0:02:51]} 6. Nc3 {[%clk 0:02:53]}  e6 {[%clk 0:02:38]} 7. Bf4 {[%clk 0:02:47]}  d5 {[%clk 0:02:37]} 8. Bd3 {[%clk 0:02:44]}  Be7 {[%clk 0:02:32]} 9. h4 {[%clk 0:02:39]}  O-O {[%clk 0:02:26]} 10. Bxh7+ {[%clk 0:02:29]}  Kxh7 {[%clk 0:01:48]} 11. Ng5+ {[%clk 0:02:27]}  Kg8 {[%clk 0:01:36]} 12. Qh5 {[%clk 0:02:23]}  Bxg5 {[%clk 0:01:36]} 13. hxg5 {[%clk 0:02:12]}  Rxf4 {[%clk 0:01:25]} 14. g6 {[%clk 0:01:29]}  Kf8 {[%clk 0:01:10]} 15. Qh8+ {[%clk 0:01:28]}  Ke7 {[%clk 0:01:10]} 16. Qxg7+ {[%clk 0:01:29]}  Ke8 {[%clk 0:01:10]} 17. Rh8+ {[%clk 0:01:25]}  Nf8 {[%clk 0:01:11]} 18. Qh6 {[%clk 0:00:41]}  Qe7 {[%clk 0:00:53]} 19. Qxf4 {[%clk 0:00:30]} 1-0


[Site "https://www.chess.com"]

[Event "Titled Tuesday Blitz May 24 Early 2022"]
[White "Tomaszewski, Kacper"]
[Black "Lohani, Sujana"]
[WhiteFideId "1127373"]
[BlackFideId "12311987"]
[WhiteElo "2153"]
[BlackElo "1691"]
[Result "1-0"]
[Round "04"]
[TimeControl "180+1"]
[Date "2022.05.25"]
[WhiteClock "0:00:54"]
[BlackClock "0:00:03"]

1. c4 {[%clk 0:03:00]}  g6 {[%clk 0:02:33]} 2. e3 {[%clk 0:03:01]}  Bg7 {[%clk 0:02:28]} 3. Nf3 {[%clk 0:03:01]}  d6 {[%clk 0:02:26]} 4. Be2 {[%clk 0:03:01]}  e5 {[%clk 0:02:25]} 5. O-O {[%clk 0:03:00]}  Nf6 {[%clk 0:02:01]} 6. d4 {[%clk 0:03:00]}  exd4 {[%clk 0:02:00]} 7. exd4 {[%clk 0:02:58]}  Bg4 {[%clk 0:01:58]} 8. Nc3 {[%clk 0:02:57]}  O-O {[%clk 0:01:57]} 9. h3 {[%clk 0:02:57]}  Bf5 {[%clk 0:01:53]} 10. Re1 {[%clk 0:02:54]}  Re8 {[%clk 0:01:51]} 11. Bg5 {[%clk 0:02:50]}  h6 {[%clk 0:01:50]} 12. Bf4 {[%clk 0:02:49]}  a6 {[%clk 0:01:38]} 13. Qb3 {[%clk 0:02:46]}  b6 {[%clk 0:01:30]} 14. a4 {[%clk 0:02:35]}  Nc6 {[%clk 0:01:27]} 15. Nd5 {[%clk 0:02:20]}  Nxd5 {[%clk 0:01:22]} 16. cxd5 {[%clk 0:02:20]}  Nxd4 {[%clk 0:01:21]} 17. Nxd4 {[%clk 0:02:18]}  Bxd4 {[%clk 0:01:21]} 18. Bxh6 {[%clk 0:02:11]}  g5 {[%clk 0:01:08]} 19. Bd3 {[%clk 0:02:04]}  Rxe1+ {[%clk 0:01:03]} 20. Rxe1 {[%clk 0:02:04]}  Bxd3 {[%clk 0:01:00]} 21. Qxd3 {[%clk 0:02:04]}  Bxf2+ {[%clk 0:01:00]} 22. Kxf2 {[%clk 0:02:02]}  Qf6+ {[%clk 0:01:00]} 23. Kg1 {[%clk 0:01:59]}  Qxh6 {[%clk 0:01:00]} 24. Re7 {[%clk 0:01:57]}  Qf6 {[%clk 0:00:58]} 25. Rxc7 {[%clk 0:01:54]}  Re8 {[%clk 0:00:52]} 26. Qf1 {[%clk 0:01:44]}  Qd4+ {[%clk 0:00:31]} 27. Kh1 {[%clk 0:01:38]}  f6 {[%clk 0:00:26]} 28. Qb1 {[%clk 0:01:32]}  Re4 {[%clk 0:00:19]} 29. Rc8+ {[%clk 0:01:26]}  Kg7 {[%clk 0:00:18]} 30. Qc1 {[%clk 0:01:24]}  Qxd5 {[%clk 0:00:15]} 31. Qc7+ {[%clk 0:01:23]}  Kg6 {[%clk 0:00:16]} 32. Qc2 {[%clk 0:01:15]}  Kh5 {[%clk 0:00:13]} 33. Rh8+ {[%clk 0:01:13]}  Kg6 {[%clk 0:00:13]} 34. Re8 {[%clk 0:01:10]}  f5 {[%clk 0:00:13]} 35. Rxe4 {[%clk 0:01:08]}  Qxe4 {[%clk 0:00:12]} 36. Qc8 {[%clk 0:01:07]}  Qe1+ {[%clk 0:00:12]} 37. Kh2 {[%clk 0:01:07]}  Qe5+ {[%clk 0:00:11]} 38. Kg1 {[%clk 0:01:07]}  f4 {[%clk 0:00:12]} 39. Qg8+ {[%clk 0:01:05]}  Kf5 {[%clk 0:00:12]} 40. Qf7+ {[%clk 0:01:04]}  Ke4 {[%clk 0:00:12]} 41. Qb7+ {[%clk 0:01:03]}  Kd3 {[%clk 0:00:11]} 42. Qxa6+ {[%clk 0:01:02]}  Kc2 {[%clk 0:00:11]} 43. Qxb6 {[%clk 0:01:02]}  Qc5+ {[%clk 0:00:10]} 44. Qxc5+ {[%clk 0:01:02]}  dxc5 {[%clk 0:00:10]} 45. a5 {[%clk 0:01:03]}  Kxb2 {[%clk 0:00:10]} 46. a6 {[%clk 0:01:04]}  c4 {[%clk 0:00:10]} 47. a7 {[%clk 0:01:04]}  c3 {[%clk 0:00:11]} 48. a8=Q {[%clk 0:01:05]}  c2 {[%clk 0:00:09]} 49. Qb7+ {[%clk 0:01:05]}  Ka1 {[%clk 0:00:09]} 50. Qa6+ {[%clk 0:01:05]}  Kb2 {[%clk 0:00:09]} 51. Qb5+ {[%clk 0:01:06]}  Ka1 {[%clk 0:00:09]} 52. Qa4+ {[%clk 0:01:05]}  Kb1 {[%clk 0:00:08]} 53. Qb3+ {[%clk 0:01:04]}  Kc1 {[%clk 0:00:08]} 54. Kf2 {[%clk 0:01:02]}  g4 {[%clk 0:00:07]} 55. hxg4 {[%clk 0:01:02]}  f3 {[%clk 0:00:07]} 56. gxf3 {[%clk 0:00:59]}  Kd1 {[%clk 0:00:06]} 57. g5 {[%clk 0:00:57]}  Kd2 {[%clk 0:00:04]} 58. Qe3+ {[%clk 0:00:54]}  Kd1 {[%clk 0:00:03]} 59. Qe1# {[%clk 0:00:54]} 1-0


[Site "https://www.chess.com"]

[Event "Titled Tuesday Blitz May 24 Early 2022"]
[White "Urazayev, Arystanbek"]
[Black "Toncheva, Nadya"]
[WhiteFideId "13709810"]
[BlackFideId "2924056"]
[WhiteElo "2422"]
[BlackElo "1888"]
[Result "1/2-1/2"]
[Round "04"]
[TimeControl "180+1"]
[Date "2022.05.25"]
[WhiteClock "0:00:07"]
[BlackClock "0:00:13"]

1. e4 {[%clk 0:03:00]}  c5 {[%clk 0:02:59]} 2. Nf3 {[%clk 0:03:00]}  Nc6 {[%clk 0:03:00]} 3. Bb5 {[%clk 0:03:00]}  e6 {[%clk 0:02:59]} 4. O-O {[%clk 0:03:00]}  Nge7 {[%clk 0:02:59]} 5. Re1 {[%clk 0:03:01]}  a6 {[%clk 0:02:58]} 6. Bf1 {[%clk 0:03:01]}  d5 {[%clk 0:02:58]} 7. exd5 {[%clk 0:03:02]}  Nxd5 {[%clk 0:02:59]} 8. d4 {[%clk 0:03:02]}  Nf6 {[%clk 0:02:59]} 9. Be3 {[%clk 0:03:01]}  cxd4 {[%clk 0:02:58]} 10. Nxd4 {[%clk 0:03:02]}  Nxd4 {[%clk 0:02:58]} 11. Bxd4 {[%clk 0:03:01]}  Be7 {[%clk 0:02:56]} 12. c4 {[%clk 0:03:01]}  O-O {[%clk 0:02:56]} 13. Nc3 {[%clk 0:03:02]}  Bd7 {[%clk 0:02:50]} 14. Qd3 {[%clk 0:02:49]}  Bc6 {[%clk 0:02:48]} 15. Rad1 {[%clk 0:02:41]}  Rc8 {[%clk 0:02:18]} 16. Qg3 {[%clk 0:02:30]}  Qc7 {[%clk 0:02:07]} 17. Be5 {[%clk 0:02:28]}  Qa5 {[%clk 0:01:53]} 18. a3 {[%clk 0:02:23]}  Rfd8 {[%clk 0:01:50]} 19. Rxd8+ {[%clk 0:02:19]}  Bxd8 {[%clk 0:01:42]} 20. Rd1 {[%clk 0:02:08]}  Bc7 {[%clk 0:01:14]} 21. Bxc7 {[%clk 0:01:58]}  Qxc7 {[%clk 0:01:15]} 22. Qxc7 {[%clk 0:01:57]}  Rxc7 {[%clk 0:01:16]} 23. Rd8+ {[%clk 0:01:56]}  Ne8 {[%clk 0:01:14]} 24. b4 {[%clk 0:01:55]}  Kf8 {[%clk 0:01:05]} 25. c5 {[%clk 0:01:46]}  Ke7 {[%clk 0:01:01]} 26. Rb8 {[%clk 0:01:45]}  Rd7 {[%clk 0:00:59]} 27. a4 {[%clk 0:01:44]}  Rd8 {[%clk 0:00:43]} 28. Rxd8 {[%clk 0:01:44]}  Kxd8 {[%clk 0:00:44]} 29. b5 {[%clk 0:01:44]}  axb5 {[%clk 0:00:43]} 30. axb5 {[%clk 0:01:45]}  Bd7 {[%clk 0:00:36]} 31. f3 {[%clk 0:01:45]}  e5 {[%clk 0:00:32]} 32. Kf2 {[%clk 0:01:44]}  Be6 {[%clk 0:00:29]} 33. b6 {[%clk 0:01:41]}  Nf6 {[%clk 0:00:22]} 34. Bd3 {[%clk 0:01:41]}  Nd7 {[%clk 0:00:18]} 35. Bxh7 {[%clk 0:01:15]}  Nxc5 {[%clk 0:00:17]} 36. Ne4 {[%clk 0:01:07]}  Nd7 {[%clk 0:00:16]} 37. Ng5 {[%clk 0:01:04]}  Bd5 {[%clk 0:00:14]} 38. h4 {[%clk 0:00:48]}  Nxb6 {[%clk 0:00:13]} 39. h5 {[%clk 0:00:49]}  Ke7 {[%clk 0:00:13]} 40. g4 {[%clk 0:00:49]}  Nd7 {[%clk 0:00:12]} 41. Bd3 {[%clk 0:00:45]}  Nc5 {[%clk 0:00:11]} 42. Bb5 {[%clk 0:00:45]}  Bc6 {[%clk 0:00:11]} 43. Bc4 {[%clk 0:00:39]}  f6 {[%clk 0:00:11]} 44. Nh3 {[%clk 0:00:30]}  b5 {[%clk 0:00:12]} 45. Be2 {[%clk 0:00:30]}  b4 {[%clk 0:00:12]} 46. Ke3 {[%clk 0:00:31]}  b3 {[%clk 0:00:13]} 47. Kd2 {[%clk 0:00:31]}  Bd5 {[%clk 0:00:11]} 48. Nf2 {[%clk 0:00:28]}  Na4 {[%clk 0:00:10]} 49. Nd1 {[%clk 0:00:26]}  Kd6 {[%clk 0:00:07]} 50. Bb5 {[%clk 0:00:21]}  Nc5 {[%clk 0:00:06]} 51. Be2 {[%clk 0:00:21]}  Na4 {[%clk 0:00:06]} 52. Bb5 {[%clk 0:00:21]}  Nc5 {[%clk 0:00:06]} 53. Be2 {[%clk 0:00:21]}  Kc6 {[%clk 0:00:06]} 54. Nc3 {[%clk 0:00:15]}  b2 {[%clk 0:00:06]} 55. Kc2 {[%clk 0:00:14]}  Bf7 {[%clk 0:00:04]} 56. Kxb2 {[%clk 0:00:14]}  Kd6 {[%clk 0:00:04]} 57. Kc2 {[%clk 0:00:14]}  Ke7 {[%clk 0:00:05]} 58. Kd2 {[%clk 0:00:15]}  Ne6 {[%clk 0:00:06]} 59. Ke3 {[%clk 0:00:14]}  Nd4 {[%clk 0:00:06]} 60. Bd3 {[%clk 0:00:14]}  Be6 {[%clk 0:00:06]} 61. Be4 {[%clk 0:00:14]}  Kf7 {[%clk 0:00:05]} 62. Bg6+ {[%clk 0:00:14]}  Ke7 {[%clk 0:00:05]} 63. Na4 {[%clk 0:00:15]}  Bb3 {[%clk 0:00:05]} 64. Nc5 {[%clk 0:00:15]}  Bd5 {[%clk 0:00:05]} 65. Nd3 {[%clk 0:00:13]}  Bxf3 {[%clk 0:00:05]} 66. g5 {[%clk 0:00:13]}  fxg5 {[%clk 0:00:05]} 67. Nxe5 {[%clk 0:00:13]}  Bxh5 {[%clk 0:00:04]} 68. Bxh5 {[%clk 0:00:12]}  Nf5+ {[%clk 0:00:04]} 69. Kf2 {[%clk 0:00:13]}  Kf6 {[%clk 0:00:04]} 70. Ng4+ {[%clk 0:00:13]}  Ke6 {[%clk 0:00:04]} 71. Be8 {[%clk 0:00:12]}  Ke7 {[%clk 0:00:04]} 72. Ba4 {[%clk 0:00:13]}  Nh4 {[%clk 0:00:04]} 73. Ke3 {[%clk 0:00:12]}  Ng6 {[%clk 0:00:04]} 74. Ke4 {[%clk 0:00:12]}  Kf7 {[%clk 0:00:04]} 75. Bb3+ {[%clk 0:00:11]}  Ke7 {[%clk 0:00:04]} 76. Kf5 {[%clk 0:00:12]}  Nf8 {[%clk 0:00:05]} 77. Ne5 {[%clk 0:00:11]}  Ne6 {[%clk 0:00:06]} 78. Bxe6 {[%clk 0:00:10]}  g6+ {[%clk 0:00:06]} 79. Nxg6+ {[%clk 0:00:10]}  Kd6 {[%clk 0:00:06]} 80. Ba2 {[%clk 0:00:11]}  Kc5 {[%clk 0:00:06]} 81. Kxg5 {[%clk 0:00:11]}  Kd4 {[%clk 0:00:07]} 82. Kf4 {[%clk 0:00:11]}  Kc5 {[%clk 0:00:07]} 83. Ne5 {[%clk 0:00:12]}  Kd4 {[%clk 0:00:07]} 84. Bf7 {[%clk 0:00:12]}  Kc3 {[%clk 0:00:08]} 85. Ke4 {[%clk 0:00:12]}  Kb4 {[%clk 0:00:09]} 86. Kd4 {[%clk 0:00:13]}  Ka3 {[%clk 0:00:08]} 87. Nd3 {[%clk 0:00:12]}  Ka4 {[%clk 0:00:07]} 88. Bc4 {[%clk 0:00:09]}  Ka3 {[%clk 0:00:08]} 89. Kc3 {[%clk 0:00:10]}  Ka4 {[%clk 0:00:09]} 90. Ne1 {[%clk 0:00:08]}  Ka3 {[%clk 0:00:09]} 91. Nc2+ {[%clk 0:00:08]}  Ka4 {[%clk 0:00:10]} 92. Kd4 {[%clk 0:00:08]}  Ka5 {[%clk 0:00:10]} 93. Kc5 {[%clk 0:00:07]}  Ka4 {[%clk 0:00:10]} 94. Bd5 {[%clk 0:00:08]}  Ka5 {[%clk 0:00:10]} 95. Bb3 {[%clk 0:00:08]}  Ka6 {[%clk 0:00:10]} 96. Nb4+ {[%clk 0:00:08]}  Kb7 {[%clk 0:00:10]} 97. Be6 {[%clk 0:00:04]}  Kc7 {[%clk 0:00:11]} 98. Nd5+ {[%clk 0:00:05]}  Kd8 {[%clk 0:00:11]} 99. Bf7 {[%clk 0:00:02]}  Kd7 {[%clk 0:00:11]} 100. Bg6 {[%clk 0:00:03]}  Ke6 {[%clk 0:00:11]} 101. Kd4 {[%clk 0:00:02]}  Kd6 {[%clk 0:00:11]} 102. Nc3 {[%clk 0:00:02]}  Ke6 {[%clk 0:00:11]} 103. Be4 {[%clk 0:00:02]}  Kf6 {[%clk 0:00:11]} 104. Nd5+ {[%clk 0:00:03]}  Ke6 {[%clk 0:00:11]} 105. Ne3 {[%clk 0:00:03]}  Kf6 {[%clk 0:00:11]} 106. Bd5 {[%clk 0:00:03]}  Kg5 {[%clk 0:00:11]} 107. Ke5 {[%clk 0:00:04]}  Kg6 {[%clk 0:00:11]} 108. Kf4 {[%clk 0:00:04]}  Kf6 {[%clk 0:00:11]} 109. Ng4+ {[%clk 0:00:04]}  Kg6 {[%clk 0:00:11]} 110. Be4+ {[%clk 0:00:04]}  Kf7 {[%clk 0:00:11]} 111. Ke5 {[%clk 0:00:04]}  Kg7 {[%clk 0:00:12]} 112. Ke6 {[%clk 0:00:04]}  Kg8 {[%clk 0:00:12]} 113. Kf6 {[%clk 0:00:04]}  Kh8 {[%clk 0:00:11]} 114. Ne5 {[%clk 0:00:03]}  Kg8 {[%clk 0:00:12]} 115. Nf7 {[%clk 0:00:03]}  Kf8 {[%clk 0:00:12]} 116. Bh7 {[%clk 0:00:04]}  Ke8 {[%clk 0:00:12]} 117. Ne5 {[%clk 0:00:05]}  Kf8 {[%clk 0:00:12]} 118. Ke6 {[%clk 0:00:05]}  Kg7 {[%clk 0:00:12]} 119. Bb1 {[%clk 0:00:05]}  Kg8 {[%clk 0:00:12]} 120. Kf6 {[%clk 0:00:05]}  Kh8 {[%clk 0:00:13]} 121. Nf7+ {[%clk 0:00:05]}  Kg8 {[%clk 0:00:12]} 122. Bc2 {[%clk 0:00:06]}  Kf8 {[%clk 0:00:12]} 123. Bh7 {[%clk 0:00:07]}  Ke8 {[%clk 0:00:12]} 124. Ne5 {[%clk 0:00:07]}  Kf8 {[%clk 0:00:12]} 125. Nd7+ {[%clk 0:00:08]}  Ke8 {[%clk 0:00:12]} 126. Ke6 {[%clk 0:00:09]}  Kd8 {[%clk 0:00:13]} 127. Kd6 {[%clk 0:00:09]}  Ke8 {[%clk 0:00:13]} 128. Bg6+ {[%clk 0:00:10]}  Kd8 {[%clk 0:00:12]} 129. Nc5 {[%clk 0:00:11]}  Kc8 {[%clk 0:00:12]} 130. Bf7 {[%clk 0:00:07]}  Kd8 {[%clk 0:00:13]} 131. Nb7+ {[%clk 0:00:07]} 1/2-1/2


[Site "https://www.chess.com"]